[Event "Titled Tuesday Blitz July 18 Early 2023"]
[White "Atakhan, Abtin"]
[Black "Bortnyk, Olexandr"]
[WhiteFideId "22502203"]
[BlackFideId "14120828"]
[WhiteElo "2749"]
[BlackElo "3018"]
[Result "0-1"]
[Round "11"]
[TimeControl "180+2"]
[Date "2023.07.18"]
[WhiteClock "0:00:00"]
[BlackClock "0:00:30"]
[Board "14"]

1. d4 {[%clk 0:03:00]}  d6 {[%clk 0:02:56]} 2. Nf3 {[%clk 0:03:00]}  Nf6 {[%clk 0:02:56]} 3. c4 {[%clk 0:03:01]}  g6 {[%clk 0:02:57]} 4. Nc3 {[%clk 0:03:01]}  Bf5 {[%clk 0:02:57]} 5. g3 {[%clk 0:02:59]}  Bg7 {[%clk 0:02:56]} 6. Qb3 {[%clk 0:02:59]}  Qc8 {[%clk 0:02:55]} 7. Bg2 {[%clk 0:02:59]}  Nc6 {[%clk 0:02:54]} 8. d5 {[%clk 0:02:55]}  Nd8 {[%clk 0:02:53]} 9. Qd1 {[%clk 0:02:43]}  Bh3 {[%clk 0:02:49]} 10. O-O {[%clk 0:02:38]}  h5 {[%clk 0:02:49]} 11. Bxh3 {[%clk 0:02:36]}  Qxh3 {[%clk 0:02:50]} 12. Ng5 {[%clk 0:02:37]}  Qg4 {[%clk 0:02:47]} 13. e4 {[%clk 0:02:25]}  Qxd1 {[%clk 0:02:47]} 14. Rxd1 {[%clk 0:02:25]}  c6 {[%clk 0:02:45]} 15. Nf3 {[%clk 0:02:19]}  cxd5 {[%clk 0:02:37]} 16. exd5 {[%clk 0:02:16]}  Rc8 {[%clk 0:02:36]} 17. Nd2 {[%clk 0:02:06]}  h4 {[%clk 0:02:31]} 18. Re1 {[%clk 0:02:02]}  hxg3 {[%clk 0:02:31]} 19. hxg3 {[%clk 0:02:02]}  a6 {[%clk 0:02:29]} 20. Rb1 {[%clk 0:01:56]}  Ng4 {[%clk 0:02:20]} 21. Nce4 {[%clk 0:01:25]}  Kf8 {[%clk 0:02:09]} 22. b4 {[%clk 0:01:15]}  f5 {[%clk 0:02:06]} 23. Ng5 {[%clk 0:01:12]}  Bd4 {[%clk 0:02:00]} 24. Re2 {[%clk 0:01:03]}  Rh2 {[%clk 0:01:59]} 25. Ndf3 {[%clk 0:00:46]}  Bxf2+ {[%clk 0:01:47]} 26. Kf1 {[%clk 0:00:46]}  Rh1+ {[%clk 0:01:47]} 27. Kg2 {[%clk 0:00:46]}  Rd1 {[%clk 0:01:47]} 28. Nh3 {[%clk 0:00:38]}  Rxc4 {[%clk 0:01:38]} 29. Bh6+ {[%clk 0:00:37]}  Nxh6 {[%clk 0:01:39]} 30. Rxd1 {[%clk 0:00:38]}  Bb6 {[%clk 0:01:36]} 31. Rde1 {[%clk 0:00:32]}  Ng8 {[%clk 0:01:35]} 32. Nh4 {[%clk 0:00:23]}  Kf7 {[%clk 0:01:14]} 33. a3 {[%clk 0:00:23]}  Bd4 {[%clk 0:01:09]} 34. Ng5+ {[%clk 0:00:21]}  Kg7 {[%clk 0:01:00]} 35. Ne6+ {[%clk 0:00:13]}  Nxe6 {[%clk 0:01:00]} 36. Rxe6 {[%clk 0:00:14]}  Bf6 {[%clk 0:01:00]} 37. Nf3 {[%clk 0:00:13]}  g5 {[%clk 0:00:57]} 38. R6e2 {[%clk 0:00:08]}  g4 {[%clk 0:00:55]} 39. Nd2 {[%clk 0:00:07]}  Rd4 {[%clk 0:00:56]} 40. Nf1 {[%clk 0:00:03]}  Rxd5 {[%clk 0:00:51]} 41. Rc2 {[%clk 0:00:02]}  Nh6 {[%clk 0:00:46]} 42. Rc7 {[%clk 0:00:01]}  b6 {[%clk 0:00:37]} 43. Rb7 {[%clk 0:00:01]}  Rd3 {[%clk 0:00:37]} 44. Ne3 {[%clk 0:00:01]}  b5 {[%clk 0:00:32]} 45. Nc2 {[%clk 0:00:00]}  Rd2+ {[%clk 0:00:30]} 0-1


[Site "https://www.chess.com"]

[Event "Titled Tuesday Blitz July 18 Early 2023"]
[White "Zhigalko, Sergei"]
[Black "Amilal Munkhdalai"]
[WhiteFideId "13502956"]
[BlackFideId "4903250"]
[WhiteElo "2884"]
[BlackElo "2733"]
[Result "1-0"]
[Round "11"]
[TimeControl "180+2"]
[Date "2023.07.18"]
[WhiteClock "0:00:03"]
[BlackClock "0:00:00"]
[Board "16"]

1. e4 {[%clk 0:03:00]}  c5 {[%clk 0:03:00]} 2. Nf3 {[%clk 0:03:00]}  Nc6 {[%clk 0:03:00]} 3. c3 {[%clk 0:03:01]}  d5 {[%clk 0:03:00]} 4. exd5 {[%clk 0:03:01]}  Qxd5 {[%clk 0:03:01]} 5. d4 {[%clk 0:03:02]}  Bg4 {[%clk 0:03:01]} 6. dxc5 {[%clk 0:03:02]}  Qxc5 {[%clk 0:02:58]} 7. Na3 {[%clk 0:03:01]}  Rd8 {[%clk 0:02:55]} 8. Qb3 {[%clk 0:02:50]}  Qd5 {[%clk 0:02:27]} 9. Bc4 {[%clk 0:02:17]}  Qe4+ {[%clk 0:02:27]} 10. Be3 {[%clk 0:02:17]}  e6 {[%clk 0:02:25]} 11. Qxb7 {[%clk 0:01:43]}  Bxa3 {[%clk 0:02:20]} 12. Ng5 {[%clk 0:01:22]}  Qg6 {[%clk 0:00:45]} 13. Qxc6+ {[%clk 0:01:19]}  Kf8 {[%clk 0:00:45]} 14. bxa3 {[%clk 0:01:15]}  Ne7 {[%clk 0:00:45]} 15. Qc7 {[%clk 0:00:55]}  Rc8 {[%clk 0:00:40]} 16. Qd7 {[%clk 0:00:55]}  h6 {[%clk 0:00:24]} 17. Bc5 {[%clk 0:00:43]}  Re8 {[%clk 0:00:22]} 18. Bb5 {[%clk 0:00:39]}  Rb8 {[%clk 0:00:13]} 19. Qxe7+ {[%clk 0:00:29]}  Kg8 {[%clk 0:00:13]} 20. Qd6 {[%clk 0:00:30]}  Rc8 {[%clk 0:00:10]} 21. Ba6 {[%clk 0:00:20]}  Re8 {[%clk 0:00:05]} 22. Nf3 {[%clk 0:00:14]}  Qe4+ {[%clk 0:00:05]} 23. Be2 {[%clk 0:00:13]}  Rc8 {[%clk 0:00:03]} 24. Bd4 {[%clk 0:00:13]}  f6 {[%clk 0:00:02]} 25. h3 {[%clk 0:00:12]}  Bf5 {[%clk 0:00:02]} 26. Rd1 {[%clk 0:00:08]}  Kh7 {[%clk 0:00:02]} 27. Qg3 {[%clk 0:00:06]}  Rb8 {[%clk 0:00:01]} 28. Nh4 {[%clk 0:00:03]}  Rb2 {[%clk 0:00:01]} 29. Be3 {[%clk 0:00:03]}  Qc2 {[%clk 0:00:01]} 30. Bd2 {[%clk 0:00:03]}  Qe4 {[%clk 0:00:01]} 31. Qf3 {[%clk 0:00:03]}  Qc2 {[%clk 0:00:01]} 32. Nxf5 {[%clk 0:00:03]}  exf5 {[%clk 0:00:01]} 33. O-O {[%clk 0:00:03]}  Rd8 {[%clk 0:00:00]} 34. Be3 {[%clk 0:00:03]} 1-0


[Site "https://www.chess.com"]

[Event "Titled Tuesday Blitz July 18 Early 2023"]
[White "Koshulyan, Egor A."]
[Black "KhalilMousavi98"]
[WhiteFideId "24237000"]
[WhiteElo "2700"]
[BlackElo "2824"]
[Result "1-0"]
[Round "11"]
[TimeControl "180+2"]
[Date "2023.07.18"]
[WhiteClock "0:00:11"]
[BlackClock "0:00:04"]
[Board "18"]

1. e4 {[%clk 0:03:00]}  c5 {[%clk 0:02:59]} 2. Nf3 {[%clk 0:03:01]}  d6 {[%clk 0:03:00]} 3. d4 {[%clk 0:03:01]}  cxd4 {[%clk 0:03:00]} 4. Qxd4 {[%clk 0:03:02]}  Nf6 {[%clk 0:03:01]} 5. Nc3 {[%clk 0:03:02]}  Nc6 {[%clk 0:02:59]} 6. Bb5 {[%clk 0:03:02]}  Bd7 {[%clk 0:02:59]} 7. Bxc6 {[%clk 0:03:02]}  Bxc6 {[%clk 0:03:00]} 8. Bg5 {[%clk 0:03:02]}  e6 {[%clk 0:02:55]} 9. O-O-O {[%clk 0:03:03]}  Be7 {[%clk 0:02:54]} 10. Qd3 {[%clk 0:03:03]}  Qa5 {[%clk 0:02:52]} 11. Kb1 {[%clk 0:03:03]}  h6 {[%clk 0:02:43]} 12. Bc1 {[%clk 0:03:02]}  Nd7 {[%clk 0:02:37]} 13. Nd4 {[%clk 0:02:58]}  Nc5 {[%clk 0:02:32]} 14. Qe2 {[%clk 0:02:59]}  Bf6 {[%clk 0:02:30]} 15. f4 {[%clk 0:02:55]}  O-O {[%clk 0:01:57]} 16. e5 {[%clk 0:02:55]}  dxe5 {[%clk 0:01:45]} 17. fxe5 {[%clk 0:02:56]}  Be7 {[%clk 0:01:43]} 18. Rhf1 {[%clk 0:02:20]}  Rad8 {[%clk 0:01:41]} 19. Qg4 {[%clk 0:02:20]}  Kh7 {[%clk 0:01:38]} 20. Nxc6 {[%clk 0:01:55]}  bxc6 {[%clk 0:01:38]} 21. Rxd8 {[%clk 0:01:55]}  Qxd8 {[%clk 0:01:34]} 22. Ne4 {[%clk 0:01:54]}  Qd5 {[%clk 0:01:10]} 23. Nf6+ {[%clk 0:01:27]}  Bxf6 {[%clk 0:01:09]} 24. exf6 {[%clk 0:01:27]}  g6 {[%clk 0:01:07]} 25. Rf3 {[%clk 0:01:17]}  Qe4 {[%clk 0:00:36]} 26. Rf4 {[%clk 0:01:06]}  Qd5 {[%clk 0:00:34]} 27. Qh3 {[%clk 0:01:04]}  g5 {[%clk 0:00:30]} 28. Rf1 {[%clk 0:00:58]}  Ne4 {[%clk 0:00:26]} 29. Qh5 {[%clk 0:00:36]}  Qd4 {[%clk 0:00:16]} 30. Qf3 {[%clk 0:00:21]}  Rb8 {[%clk 0:00:16]} 31. Ka1 {[%clk 0:00:21]}  Rb5 {[%clk 0:00:09]} 32. Qh5 {[%clk 0:00:17]}  Rb7 {[%clk 0:00:09]} 33. Rd1 {[%clk 0:00:16]}  Qxf6 {[%clk 0:00:08]} 34. h4 {[%clk 0:00:13]}  Qg6 {[%clk 0:00:04]} 35. Qf3 {[%clk 0:00:13]}  g4 {[%clk 0:00:04]} 36. Qa3 {[%clk 0:00:13]}  Qf6 {[%clk 0:00:02]} 37. Qf8 {[%clk 0:00:12]}  Qe7 {[%clk 0:00:02]} 38. Qxh6+ {[%clk 0:00:12]}  Kg8 {[%clk 0:00:02]} 39. Qf4 {[%clk 0:00:10]}  f5 {[%clk 0:00:02]} 40. Qe5 {[%clk 0:00:09]}  Rd7 {[%clk 0:00:02]} 41. Rf1 {[%clk 0:00:09]}  Rd5 {[%clk 0:00:02]} 42. Qb8+ {[%clk 0:00:09]}  Rd8 {[%clk 0:00:03]} 43. Qf4 {[%clk 0:00:09]}  Qf6 {[%clk 0:00:03]} 44. Qxe4 {[%clk 0:00:09]}  fxe4 {[%clk 0:00:02]} 45. Rxf6 {[%clk 0:00:10]}  Rd1 {[%clk 0:00:03]} 46. Kb1 {[%clk 0:00:10]}  e3 {[%clk 0:00:03]} 47. Rxe6 {[%clk 0:00:10]}  Rg1 {[%clk 0:00:03]} 48. Rxe3 {[%clk 0:00:10]}  Rxg2 {[%clk 0:00:04]} 49. Re5 {[%clk 0:00:07]}  Kf7 {[%clk 0:00:04]} 50. Rg5 {[%clk 0:00:08]}  Kf6 {[%clk 0:00:04]} 51. b3 {[%clk 0:00:09]}  g3 {[%clk 0:00:05]} 52. Bf4 {[%clk 0:00:09]}  Rg1+ {[%clk 0:00:05]} 53. Kb2 {[%clk 0:00:09]}  g2 {[%clk 0:00:06]} 54. Be3 {[%clk 0:00:09]}  Re1 {[%clk 0:00:06]} 55. Bd4+ {[%clk 0:00:09]}  Ke6 {[%clk 0:00:06]} 56. Rxg2 {[%clk 0:00:10]}  Kd5 {[%clk 0:00:07]} 57. Bc3 {[%clk 0:00:11]}  Rd1 {[%clk 0:00:04]} 58. Rd2+ {[%clk 0:00:11]} 1-0


[Site "https://www.chess.com"]

[Event "Titled Tuesday Blitz July 18 Early 2023"]
[White "Oro, Faustino"]
[Black "Schnaider, Ilan"]
[WhiteFideId "20000197"]
[BlackFideId "169013"]
[WhiteElo "2786"]
[BlackElo "2664"]
[Result "1-0"]
[Round "11"]
[TimeControl "180+2"]
[Date "2023.07.18"]
[WhiteClock "0:01:01"]
[BlackClock "0:00:04"]
[Board "19"]

1. d4 {[%clk 0:03:00]}  d5 {[%clk 0:02:59]} 2. c4 {[%clk 0:03:00]}  c6 {[%clk 0:03:00]} 3. Nc3 {[%clk 0:02:57]}  Nf6 {[%clk 0:03:00]} 4. Nf3 {[%clk 0:02:57]}  e6 {[%clk 0:03:00]} 5. Bg5 {[%clk 0:02:56]}  h6 {[%clk 0:03:01]} 6. Bh4 {[%clk 0:02:55]}  dxc4 {[%clk 0:03:01]} 7. e4 {[%clk 0:02:54]}  g5 {[%clk 0:03:01]} 8. Bg3 {[%clk 0:02:53]}  b5 {[%clk 0:03:02]} 9. Qc2 {[%clk 0:02:29]}  Bg7 {[%clk 0:02:59]} 10. Be2 {[%clk 0:02:26]}  Bb7 {[%clk 0:02:59]} 11. O-O {[%clk 0:02:25]}  Nbd7 {[%clk 0:02:59]} 12. e5 {[%clk 0:02:22]}  Nd5 {[%clk 0:02:57]} 13. Ne4 {[%clk 0:02:22]}  Bf8 {[%clk 0:02:46]} 14. b3 {[%clk 0:02:18]}  cxb3 {[%clk 0:02:39]} 15. axb3 {[%clk 0:02:18]}  Qb6 {[%clk 0:02:39]} 16. Rfd1 {[%clk 0:02:06]}  Be7 {[%clk 0:02:36]} 17. h4 {[%clk 0:01:58]}  g4 {[%clk 0:02:22]} 18. Ne1 {[%clk 0:01:58]}  h5 {[%clk 0:02:17]} 19. Nd3 {[%clk 0:01:58]}  a5 {[%clk 0:02:11]} 20. Ndc5 {[%clk 0:01:57]}  Nxc5 {[%clk 0:02:02]} 21. dxc5 {[%clk 0:01:57]}  Qc7 {[%clk 0:02:00]} 22. Nd6+ {[%clk 0:01:57]}  Bxd6 {[%clk 0:01:59]} 23. exd6 {[%clk 0:01:51]}  Qd8 {[%clk 0:01:56]} 24. Qb2 {[%clk 0:01:50]}  f6 {[%clk 0:01:38]} 25. Bd3 {[%clk 0:01:45]}  Kd7 {[%clk 0:01:37]} 26. Rac1 {[%clk 0:01:40]}  a4 {[%clk 0:01:33]} 27. bxa4 {[%clk 0:01:40]}  Rxa4 {[%clk 0:01:34]} 28. Bc2 {[%clk 0:01:29]}  Ra7 {[%clk 0:01:19]} 29. Bb3 {[%clk 0:01:28]}  Re8 {[%clk 0:00:30]} 30. Re1 {[%clk 0:01:25]}  Kc8 {[%clk 0:00:21]} 31. Bxd5 {[%clk 0:01:22]}  exd5 {[%clk 0:00:11]} 32. Rxe8 {[%clk 0:01:20]}  Qxe8 {[%clk 0:00:12]} 33. Qxf6 {[%clk 0:01:20]}  Ba6 {[%clk 0:00:12]} 34. Be5 {[%clk 0:01:07]}  Rd7 {[%clk 0:00:11]} 35. Re1 {[%clk 0:01:06]}  Kb7 {[%clk 0:00:11]} 36. Bc3 {[%clk 0:01:05]}  Qc8 {[%clk 0:00:09]} 37. Re7 {[%clk 0:01:03]}  Ka8 {[%clk 0:00:07]} 38. Qf7 {[%clk 0:01:00]}  Rd8 {[%clk 0:00:06]} 39. Ra7+ {[%clk 0:00:59]}  Kb8 {[%clk 0:00:06]} 40. Qc7+ {[%clk 0:01:00]}  Qxc7 {[%clk 0:00:06]} 41. dxc7+ {[%clk 0:01:01]}  Kc8 {[%clk 0:00:04]} 42. cxd8=Q+ {[%clk 0:01:01]} 1-0


[Site "https://www.chess.com"]

[Event "Titled Tuesday Blitz July 18 Early 2023"]
[White "Zavgorodniy, Sergiy"]
[Black "Dzhumagaliev, Yan"]
[WhiteFideId "14110148"]
[BlackFideId "24100110"]
[WhiteElo "2604"]
[BlackElo "2771"]
[Result "1-0"]
[Round "11"]
[TimeControl "180+2"]
[Date "2023.07.18"]
[WhiteClock "0:00:07"]
[BlackClock "0:00:00"]
[Board "21"]

1. e4 {[%clk 0:03:00]}  h5 {[%clk 0:02:59]} 2. d4 {[%clk 0:02:59]}  h4 {[%clk 0:03:00]} 3. h3 {[%clk 0:02:59]}  c6 {[%clk 0:03:00]} 4. c4 {[%clk 0:02:58]}  d6 {[%clk 0:03:00]} 5. Nc3 {[%clk 0:02:57]}  e5 {[%clk 0:03:00]} 6. Be3 {[%clk 0:02:56]}  Nd7 {[%clk 0:03:01]} 7. Qd2 {[%clk 0:02:55]}  Be7 {[%clk 0:03:01]} 8. O-O-O {[%clk 0:02:54]}  Qc7 {[%clk 0:03:02]} 9. f4 {[%clk 0:02:53]}  Ngf6 {[%clk 0:03:02]} 10. Nf3 {[%clk 0:02:51]}  Nh5 {[%clk 0:02:58]} 11. fxe5 {[%clk 0:02:30]}  dxe5 {[%clk 0:02:59]} 12. d5 {[%clk 0:02:30]}  Bb4 {[%clk 0:02:49]} 13. Bd3 {[%clk 0:02:26]}  Ng3 {[%clk 0:02:46]} 14. Rhe1 {[%clk 0:02:25]}  Qa5 {[%clk 0:02:43]} 15. Kb1 {[%clk 0:02:17]}  Bxc3 {[%clk 0:02:42]} 16. Qxc3 {[%clk 0:02:18]}  Qxc3 {[%clk 0:02:43]} 17. bxc3 {[%clk 0:02:19]}  f6 {[%clk 0:02:42]} 18. c5 {[%clk 0:02:01]}  Nf8 {[%clk 0:02:23]} 19. Bc2 {[%clk 0:01:56]}  Bd7 {[%clk 0:02:22]} 20. Nd2 {[%clk 0:01:49]}  Ng6 {[%clk 0:02:03]} 21. Nc4 {[%clk 0:01:46]}  Ke7 {[%clk 0:02:03]} 22. Rd2 {[%clk 0:01:27]}  Rab8 {[%clk 0:01:48]} 23. Red1 {[%clk 0:01:24]}  Rhd8 {[%clk 0:01:33]} 24. Ka1 {[%clk 0:01:25]}  Be8 {[%clk 0:01:21]} 25. Na5 {[%clk 0:01:22]}  Nf4 {[%clk 0:00:50]} 26. Bxf4 {[%clk 0:01:06]}  exf4 {[%clk 0:00:49]} 27. d6+ {[%clk 0:00:59]}  Kd7 {[%clk 0:00:34]} 28. e5 {[%clk 0:00:53]}  fxe5 {[%clk 0:00:33]} 29. Re1 {[%clk 0:00:49]}  Ke6 {[%clk 0:00:22]} 30. Nc4 {[%clk 0:00:44]}  Kf6 {[%clk 0:00:22]} 31. Nxe5 {[%clk 0:00:42]}  Bd7 {[%clk 0:00:18]} 32. Nxd7+ {[%clk 0:00:38]}  Rxd7 {[%clk 0:00:19]} 33. Bb3 {[%clk 0:00:38]}  b6 {[%clk 0:00:13]} 34. Re6+ {[%clk 0:00:31]}  Kf5 {[%clk 0:00:10]} 35. Rd1 {[%clk 0:00:23]}  bxc5 {[%clk 0:00:06]} 36. Rde1 {[%clk 0:00:23]}  f3 {[%clk 0:00:07]} 37. gxf3 {[%clk 0:00:16]}  Rbd8 {[%clk 0:00:06]} 38. Re7 {[%clk 0:00:12]}  Rxd6 {[%clk 0:00:05]} 39. Rxg7 {[%clk 0:00:10]}  Kf4 {[%clk 0:00:05]} 40. Rg4+ {[%clk 0:00:10]}  Kxf3 {[%clk 0:00:05]} 41. Rxh4 {[%clk 0:00:10]}  Kf2 {[%clk 0:00:05]} 42. Rc1 {[%clk 0:00:10]}  Ne2 {[%clk 0:00:06]} 43. Rc2 {[%clk 0:00:09]}  Ke3 {[%clk 0:00:07]} 44. Rc4 {[%clk 0:00:08]}  Rd5 {[%clk 0:00:06]} 45. Kb2 {[%clk 0:00:08]}  Nf4 {[%clk 0:00:06]} 46. h4 {[%clk 0:00:07]}  Nd3+ {[%clk 0:00:07]} 47. Ka3 {[%clk 0:00:08]}  R5d7 {[%clk 0:00:07]} 48. Rh2 {[%clk 0:00:07]}  Rb7 {[%clk 0:00:06]} 49. Rh3+ {[%clk 0:00:03]}  Kd2 {[%clk 0:00:06]} 50. Rh2+ {[%clk 0:00:03]}  Ke3 {[%clk 0:00:06]} 51. h5 {[%clk 0:00:03]}  Rh8 {[%clk 0:00:07]} 52. h6 {[%clk 0:00:03]}  Rbh7 {[%clk 0:00:07]} 53. Rh3+ {[%clk 0:00:02]}  Kd2 {[%clk 0:00:07]} 54. Rh2+ {[%clk 0:00:03]}  Ke3 {[%clk 0:00:08]} 55. Rh3+ {[%clk 0:00:03]}  Kd2 {[%clk 0:00:07]} 56. Rch4 {[%clk 0:00:04]}  Ne5 {[%clk 0:00:06]} 57. Rh2+ {[%clk 0:00:04]}  Kxc3 {[%clk 0:00:06]} 58. R2h3+ {[%clk 0:00:04]}  Nd3 {[%clk 0:00:07]} 59. Bc4 {[%clk 0:00:04]}  Rd8 {[%clk 0:00:06]} 60. Bxd3 {[%clk 0:00:04]}  Rxd3 {[%clk 0:00:07]} 61. Rxd3+ {[%clk 0:00:04]}  Kxd3 {[%clk 0:00:08]} 62. Rh3+ {[%clk 0:00:05]}  Kd4 {[%clk 0:00:08]} 63. Rh4+ {[%clk 0:00:05]}  Kd3 {[%clk 0:00:09]} 64. Rh3+ {[%clk 0:00:05]}  Kc4 {[%clk 0:00:09]} 65. Kb2 {[%clk 0:00:04]}  Kd4 {[%clk 0:00:09]} 66. Kc2 {[%clk 0:00:04]}  c4 {[%clk 0:00:09]} 67. Rh4+ {[%clk 0:00:05]}  Kd5 {[%clk 0:00:10]} 68. Kc3 {[%clk 0:00:05]}  a6 {[%clk 0:00:10]} 69. Rh5+ {[%clk 0:00:05]}  Kd6 {[%clk 0:00:10]} 70. Kxc4 {[%clk 0:00:06]}  a5 {[%clk 0:00:10]} 71. a3 {[%clk 0:00:06]}  a4 {[%clk 0:00:09]} 72. Kb4 {[%clk 0:00:05]}  c5+ {[%clk 0:00:09]} 73. Kxa4 {[%clk 0:00:05]}  Kc6 {[%clk 0:00:10]} 74. Kb3 {[%clk 0:00:05]}  Kb5 {[%clk 0:00:10]} 75. Kc3 {[%clk 0:00:05]}  Kc6 {[%clk 0:00:10]} 76. Kc4 {[%clk 0:00:06]}  Kd6 {[%clk 0:00:11]} 77. a4 {[%clk 0:00:06]}  Kc6 {[%clk 0:00:09]} 78. Rxc5+ {[%clk 0:00:06]}  Kb6 {[%clk 0:00:10]} 79. Rh5 {[%clk 0:00:07]}  Ka6 {[%clk 0:00:10]} 80. Kd4 {[%clk 0:00:07]}  Kb6 {[%clk 0:00:11]} 81. Ke4 {[%clk 0:00:08]}  Kc6 {[%clk 0:00:10]} 82. Kf5 {[%clk 0:00:09]}  Ra7 {[%clk 0:00:09]} 83. h7 {[%clk 0:00:08]}  Ra5+ {[%clk 0:00:10]} 84. Kg6 {[%clk 0:00:08]}  Rxa4 {[%clk 0:00:11]} 85. h8=Q {[%clk 0:00:09]}  Ra8 {[%clk 0:00:00]} 86. Qxa8+ {[%clk 0:00:07]} 1-0


[Site "https://www.chess.com"]

[Event "Titled Tuesday Blitz July 18 Early 2023"]
[White "Krzyzanowski, Marcin"]
[Black "Mamedov, Edgar"]
[WhiteFideId "1132199"]
[BlackFideId "13739980"]
[WhiteElo "2768"]
[BlackElo "2601"]
[Result "1-0"]
[Round "11"]
[TimeControl "180+2"]
[Date "2023.07.18"]
[WhiteClock "0:00:08"]
[BlackClock "0:00:00"]
[Board "22"]

1. e4 {[%clk 0:03:00]}  c5 {[%clk 0:02:59]} 2. Nf3 {[%clk 0:03:00]}  Nc6 {[%clk 0:02:58]} 3. d4 {[%clk 0:02:59]}  cxd4 {[%clk 0:02:56]} 4. Nxd4 {[%clk 0:03:00]}  Nf6 {[%clk 0:02:56]} 5. Nc3 {[%clk 0:02:59]}  e5 {[%clk 0:02:52]} 6. Ndb5 {[%clk 0:02:59]}  d6 {[%clk 0:02:52]} 7. Nd5 {[%clk 0:02:59]}  Nxd5 {[%clk 0:02:51]} 8. exd5 {[%clk 0:03:00]}  Nb8 {[%clk 0:02:51]} 9. a4 {[%clk 0:02:58]}  Be7 {[%clk 0:02:25]} 10. Be2 {[%clk 0:02:58]}  O-O {[%clk 0:02:22]} 11. O-O {[%clk 0:02:58]}  a6 {[%clk 0:02:22]} 12. Na3 {[%clk 0:02:58]}  Nd7 {[%clk 0:02:21]} 13. Nc4 {[%clk 0:02:40]}  b6 {[%clk 0:02:19]} 14. a5 {[%clk 0:02:26]}  b5 {[%clk 0:02:18]} 15. Ne3 {[%clk 0:02:27]}  f5 {[%clk 0:02:16]} 16. c4 {[%clk 0:02:17]}  f4 {[%clk 0:02:04]} 17. Nc2 {[%clk 0:02:17]}  bxc4 {[%clk 0:02:02]} 18. Nb4 {[%clk 0:02:10]}  Bf6 {[%clk 0:01:51]} 19. Ra3 {[%clk 0:01:56]}  e4 {[%clk 0:01:43]} 20. Nc6 {[%clk 0:01:42]}  Qe8 {[%clk 0:01:37]} 21. f3 {[%clk 0:01:36]}  e3 {[%clk 0:01:34]} 22. Bxc4 {[%clk 0:01:36]}  Ne5 {[%clk 0:01:33]} 23. Nxe5 {[%clk 0:01:18]}  Qxe5 {[%clk 0:01:30]} 24. b4 {[%clk 0:01:16]}  Bd7 {[%clk 0:01:21]} 25. Rb3 {[%clk 0:01:09]}  Rfc8 {[%clk 0:01:08]} 26. Bb2 {[%clk 0:01:09]}  Qg5 {[%clk 0:00:59]} 27. Qe2 {[%clk 0:00:51]}  Bxb2 {[%clk 0:00:54]} 28. Rxb2 {[%clk 0:00:50]}  Qe5 {[%clk 0:00:53]} 29. Rfb1 {[%clk 0:00:41]}  Bf5 {[%clk 0:00:51]} 30. Rc1 {[%clk 0:00:36]}  Bd3 {[%clk 0:00:45]} 31. Qxd3 {[%clk 0:00:26]}  Qxb2 {[%clk 0:00:45]} 32. Rb1 {[%clk 0:00:27]}  Qe5 {[%clk 0:00:33]} 33. Bxa6 {[%clk 0:00:21]}  Rc3 {[%clk 0:00:31]} 34. Qe2 {[%clk 0:00:20]}  Qxd5 {[%clk 0:00:29]} 35. Rd1 {[%clk 0:00:20]}  Qb3 {[%clk 0:00:24]} 36. Bb7 {[%clk 0:00:20]}  Rb8 {[%clk 0:00:20]} 37. Bd5+ {[%clk 0:00:20]}  Qxd5 {[%clk 0:00:20]} 38. Rxd5 {[%clk 0:00:21]}  Rc1+ {[%clk 0:00:20]} 39. Rd1 {[%clk 0:00:21]}  Rbc8 {[%clk 0:00:19]} 40. a6 {[%clk 0:00:13]}  R1c2 {[%clk 0:00:14]} 41. Qd3 {[%clk 0:00:10]}  g6 {[%clk 0:00:03]} 42. a7 {[%clk 0:00:10]}  Kg7 {[%clk 0:00:02]} 43. Qd4+ {[%clk 0:00:09]}  Kh6 {[%clk 0:00:01]} 44. Qxf4+ {[%clk 0:00:10]}  g5 {[%clk 0:00:00]} 45. Qxe3 {[%clk 0:00:08]} 1-0


[Site "https://www.chess.com"]

[Event "Titled Tuesday Blitz July 18 Early 2023"]
[White "Baskakov, Egor"]
[Black "Belov, Alexei"]
[WhiteFideId "24197866"]
[BlackFideId "4128206"]
[WhiteElo "2856"]
[BlackElo "2636"]
[Result "1-0"]
[Round "11"]
[TimeControl "180+2"]
[Date "2023.07.18"]
[WhiteClock "0:00:36"]
[BlackClock "0:00:00"]
[Board "26"]

1. e4 {[%clk 0:03:00]}  e6 {[%clk 0:02:59]} 2. Nc3 {[%clk 0:03:00]}  d5 {[%clk 0:02:59]} 3. g3 {[%clk 0:03:01]}  Nf6 {[%clk 0:02:59]} 4. Bg2 {[%clk 0:03:01]}  c5 {[%clk 0:02:56]} 5. Nge2 {[%clk 0:03:01]}  d4 {[%clk 0:02:54]} 6. Nb1 {[%clk 0:03:01]}  Nc6 {[%clk 0:02:54]} 7. d3 {[%clk 0:03:01]}  e5 {[%clk 0:02:51]} 8. h3 {[%clk 0:03:01]}  g6 {[%clk 0:02:50]} 9. O-O {[%clk 0:03:02]}  Bg7 {[%clk 0:02:50]} 10. Nd2 {[%clk 0:03:02]}  O-O {[%clk 0:02:50]} 11. f4 {[%clk 0:03:03]}  exf4 {[%clk 0:02:42]} 12. Nxf4 {[%clk 0:03:01]}  Ne5 {[%clk 0:02:40]} 13. Nf3 {[%clk 0:02:59]}  Nfd7 {[%clk 0:02:38]} 14. Bd2 {[%clk 0:02:51]}  Nxf3+ {[%clk 0:02:38]} 15. Qxf3 {[%clk 0:02:52]}  Ne5 {[%clk 0:02:38]} 16. Qf2 {[%clk 0:02:53]}  Be6 {[%clk 0:02:31]} 17. Nd5 {[%clk 0:02:50]}  f5 {[%clk 0:02:23]} 18. Qe2 {[%clk 0:02:39]}  fxe4 {[%clk 0:02:12]} 19. Qxe4 {[%clk 0:02:40]}  Bf5 {[%clk 0:02:04]} 20. Qe2 {[%clk 0:02:34]}  Qd7 {[%clk 0:01:56]} 21. g4 {[%clk 0:02:29]}  Be6 {[%clk 0:01:56]} 22. Qe4 {[%clk 0:02:07]}  Rae8 {[%clk 0:01:26]} 23. Bg5 {[%clk 0:02:00]}  b6 {[%clk 0:00:52]} 24. Nf6+ {[%clk 0:01:34]}  Bxf6 {[%clk 0:00:52]} 25. Bxf6 {[%clk 0:01:34]}  Nf7 {[%clk 0:00:40]} 26. Rae1 {[%clk 0:01:15]}  Nd6 {[%clk 0:00:24]} 27. Qc6 {[%clk 0:01:00]}  Bxg4 {[%clk 0:00:15]} 28. Rxe8 {[%clk 0:00:52]}  Nxe8 {[%clk 0:00:10]} 29. Bd5+ {[%clk 0:00:52]}  Rf7 {[%clk 0:00:08]} 30. Qxd7 {[%clk 0:00:39]}  Bxd7 {[%clk 0:00:06]} 31. Bxd4 {[%clk 0:00:38]}  Bf5 {[%clk 0:00:00]} 32. Be5 {[%clk 0:00:36]} 1-0


[Site "https://www.chess.com"]

[Event "Titled Tuesday Blitz July 18 Early 2023"]
[White "Tregubov, Pavel V."]
[Black "Ter-Sahakyan, Samvel"]
[WhiteFideId "4115341"]
[BlackFideId "13302531"]
[WhiteElo "2632"]
[BlackElo "2842"]
[Result "0-1"]
[Round "11"]
[TimeControl "180+2"]
[Date "2023.07.18"]
[WhiteClock "0:00:17"]
[BlackClock "0:01:12"]
[Board "27"]

1. e4 {[%clk 0:02:59]}  c5 {[%clk 0:03:00]} 2. Nf3 {[%clk 0:02:59]}  e6 {[%clk 0:03:00]} 3. c3 {[%clk 0:02:58]}  d5 {[%clk 0:02:58]} 4. e5 {[%clk 0:02:57]}  d4 {[%clk 0:02:58]} 5. d3 {[%clk 0:02:57]}  Ne7 {[%clk 0:02:51]} 6. g3 {[%clk 0:02:57]}  b6 {[%clk 0:02:46]} 7. Bg2 {[%clk 0:02:57]}  Bb7 {[%clk 0:02:47]} 8. O-O {[%clk 0:02:57]}  Nf5 {[%clk 0:02:43]} 9. cxd4 {[%clk 0:02:43]}  Nxd4 {[%clk 0:02:38]} 10. Nxd4 {[%clk 0:02:33]}  Bxg2 {[%clk 0:02:38]} 11. Qa4+ {[%clk 0:02:33]}  Bc6 {[%clk 0:02:06]} 12. Nxc6 {[%clk 0:02:32]}  Qd7 {[%clk 0:02:06]} 13. Nc3 {[%clk 0:02:22]}  Nxc6 {[%clk 0:02:06]} 14. Re1 {[%clk 0:02:16]}  Be7 {[%clk 0:02:05]} 15. Qg4 {[%clk 0:02:14]}  Nd4 {[%clk 0:01:55]} 16. Qxg7 {[%clk 0:02:07]}  O-O-O {[%clk 0:01:51]} 17. Rd1 {[%clk 0:02:02]}  h5 {[%clk 0:01:30]} 18. Qxf7 {[%clk 0:01:25]}  Rdf8 {[%clk 0:01:29]} 19. Qg6 {[%clk 0:01:25]}  Nf5 {[%clk 0:01:29]} 20. Ne4 {[%clk 0:01:08]}  Rfg8 {[%clk 0:01:29]} 21. Qf7 {[%clk 0:01:04]}  Rg7 {[%clk 0:01:22]} 22. Nf6 {[%clk 0:00:25]}  Qc6 {[%clk 0:01:12]} 23. Qxh5 {[%clk 0:00:21]}  Rxh5 {[%clk 0:01:11]} 24. Nxh5 {[%clk 0:00:17]}  Qf3 {[%clk 0:01:12]} 0-1


[Site "https://www.chess.com"]